[Event "Asian Amateur Rapid Women 2024"]
[Site "Al Ain"]
[Date "2024.12.15"]
[Round "5.3"]
[White "Sananda R"]
[Black "Smaraki, Mohanty"]
[Result "1/2-1/2"]
[ECO "B01"]
[WhiteElo "1696"]
[BlackElo "1745"]
[Annotator "NA RC"]
[PlyCount "116"]
[EventDate "2024.12.15"]
[EventType "swiss"]
[EventCountry "UAE"]
[SourceTitle "playchess.com"]
[Source "ChessBase"]
[SourceQuality "1"]
[TimeControl "900+10"]

1. e4 {[%emt 0:00:07]} d5 {[%emt 0:00:02]} 2. exd5 {[%emt 0:00:05]} Qxd5 {[%emt 0:00:02]} 3. Nf3 {[%emt 0:00:34]} Bg4 {[%emt 0:00:07]} 4. Be2 {[%emt 0:00:01]} Nf6 {[%emt 0:00:13]} 5. Nc3 {[%emt 0:00:21]} Qa5 {[%emt 0:00:29]} 6. h3 {[%emt 0:00:09]} Bh5 {[%emt 0:00:20]} 7. O-O {[%emt 0:01:42]} e6 {[%emt 0:01:10]} 8. d3 {[%emt 0:02:13]} Bd6 {[%emt 0:01:02]} 9. Ne4 {[%emt 0:01:45]} Nxe4 {[%emt 0:03:47]} 10. dxe4 {[%emt 0:00:02]} Nd7 {[%emt 0:00:42]} 11. Bd2 {[%emt 0:00:25]} Qa4 {[%emt 0:01:48]} 12. Ng5 {[%emt 0:04:14]} Bg6 {[%emt 0:01:01]} 13. b3 {[%emt 0:03:25]} Qc6 {[%emt 0:01:00]} 14. a4 {[%emt 0:00:06]} a6 {[%emt 0:00:13]} 15. Bd3 {[%emt 0:01:07]} h6 {[%emt 0:00:11]} 16. Nf3 {[%emt 0:00:06]} Bxe4 {[%emt 0:00:33]} 17. Bxe4 {[%emt 0:00:02]} Qxe4 {[%emt 0:00:02]} 18. Re1 {[%emt 0:00:02]} Qg6 {[%emt 0:00:35]} 19. c4 {[%emt 0:01:54]} O-O {[%emt 0:00:26]} 20. b4 {[%emt 0:00:00]} Rfd8 {[%emt 0:00:36]} 21. Qe2 {[%emt 0:00:00]} c5 {[%emt 0:00:34]} 22. b5 {[%emt 0:00:00]} axb5 {[%emt 0:00:57]} 23. axb5 {[%emt 0:00:00]} Rxa1 {[%emt 0:00:32]} 24. Rxa1 {[%emt 0:00:00]} Nf6 {[%emt 0:00:19]} 25. Ba5 {[%emt 0:00:24]} Ra8 {[%emt 0:00:26]} 26. Qd1 {[%emt 0:00:29]} Ne4 {[%emt 0:00:24]} 27. Be1 {[%emt 0:00:11]} Rd8 {[%emt 0:00:13]} 28. Qe2 {[%emt 0:00:07]} Qf6 {[%emt 0:00:19]} 29. Rd1 {[%emt 0:00:16]} Nc3 {[%emt 0:01:00]} 30. Bxc3 {[%emt 0:00:02]} Qxc3 {[%emt 0:00:01]} 31. Kh1 {[%emt 0:00:14]} Qf6 {[%emt 0:00:34]} 32. g3 {[%emt 0:00:07]} Qe7 {[%emt 0:00:26]} 33. Kg2 {[%emt 0:00:02]} Bc7 {[%emt 0:00:02]} 34. Rd3 {[%emt 0:00:16]} b6 {[%emt 0:00:07]} 35. Rd1 {[%emt 0:00:02]} Rxd1 {[%emt 0:00:06]} 36. Qxd1 {[%emt 0:00:01]} Qd6 {[%emt 0:00:01]} 37. Qa4 {[%emt 0:00:08]} g5 {[%emt 0:00:10]} 38. Qa8+ {[%emt 0:00:03]} Kg7 {[%emt 0:00:02]} 39. Qe4 {[%emt 0:00:06]} f5 {[%emt 0:00:06]} 40. Qe2 {[%emt 0:00:26]} e5 {[%emt 0:00:08]} 41. Nd2 {[%emt 0:00:31]} e4 {[%emt 0:00:03]} 42. Nf1 {[%emt 0:00:01]} Qe5 {[%emt 0:00:36]} 43. Qd2 {[%emt 0:00:21]} Qd4 {[%emt 0:00:04]} 44. Qc2 {[%emt 0:00:02]} f4 {[%emt 0:00:14]} 45. Nd2 {[%emt 0:00:18]} e3 {[%emt 0:00:25]} 46. Nf3 {[%emt 0:00:01]} Qf6 {[%emt 0:00:22]} 47. fxe3 {[%emt 0:00:16]} fxg3 {[%emt 0:00:10]} 48. Qd3 {[%emt 0:00:09]} Qb2+ {[%emt 0:00:02]} 49. Nd2 {[%emt 0:00:06]} Qf6 {[%emt 0:00:11]} 50. Ne4 {[%emt 0:00:02]} Qb2+ {[%emt 0:00:17]} 51. Nd2 {[%emt 0:00:01]} Qe5 {[%emt 0:00:13]} 52. Nf3 {[%emt 0:00:04]} Qd6 {[%emt 0:00:03]} 53. Qc3+ {[%emt 0:00:02]} Qf6 {[%emt 0:00:02]} 54. Qd3 {[%emt 0:00:02]} Qd6 {[%emt 0:00:03]} 55. Qc3+ {[%emt 0:00:00]} Kg8 {[%emt 0:00:03]} 56. Qc2 {[%emt 0:00:15]} Qe6 {[%emt 0:00:11]} 57. Qd3 {[%emt 0:00:29]} Kg7 {[%emt 0:00:21]} 58. Qc3+ {[%emt 0:00:02]} Kg6 {[%emt 0:00:25]} 1/2-1/2

[Event "Asian Amateur Rapid Women 2024"]
[Site "Al Ain"]
[Date "2024.12.15"]
[Round "5.4"]
[White "Asudani Ruhani Raj"]
[Black "Antonova, Nadezhda"]
[Result "0-1"]
[ECO "D35"]
[WhiteElo "1613"]
[BlackElo "1989"]
[Annotator "NA RC"]
[PlyCount "126"]
[EventDate "2024.12.15"]
[EventType "swiss"]
[EventCountry "UAE"]
[SourceTitle "playchess.com"]
[Source "ChessBase"]
[SourceQuality "1"]
[TimeControl "900+10"]

1. d4 {[%emt 0:00:04]} d5 {[%emt 0:00:02]} 2. c4 {[%emt 0:00:01]} e6 {[%emt 0:00:02]} 3. cxd5 {[%emt 0:00:02]} exd5 {[%emt 0:00:01]} 4. Nc3 {[%emt 0:00:01]} h6 {[%emt 0:00:01]} 5. Nf3 {[%emt 0:00:02]} Nf6 {[%emt 0:00:01]} 6. Bf4 {[%emt 0:00:02]} Bd6 {[%emt 0:00:01]} 7. Bxd6 {[%emt 0:00:03]} Qxd6 {[%emt 0:00:02]} 8. e3 {[%emt 0:00:04]} O-O {[%emt 0:00:14]} 9. Bd3 {[%emt 0:00:06]} Re8 {[%emt 0:00:19]} 10. O-O {[%emt 0:00:04]} c6 {[%emt 0:00:07]} 11. Rb1 {[%emt 0:00:08]} Qe7 {[%emt 0:00:54]} 12. b4 {[%emt 0:00:07]} Ne4 {[%emt 0:00:02]} 13. Qc2 {[%emt 0:00:16]} a6 {[%emt 0:05:18]} 14. Na4 {[%emt 0:01:03]} Nd7 {[%emt 0:00:42]} 15. Rfc1 {[%emt 0:00:49]} Ndf6 {[%emt 0:01:11]} 16. Nb6 {[%emt 0:00:30]} Rb8 {[%emt 0:00:12]} 17. Nxc8 {[%emt 0:00:31]} Rbxc8 {[%emt 0:00:45]} 18. a4 {[%emt 0:00:17]} Nd6 {[%emt 0:00:44]} 19. Qe2 {[%emt 0:01:20]} b5 {[%emt 0:00:24]} 20. Ne5 {[%emt 0:00:33]} Nc4 {[%emt 0:00:08]} 21. Bxc4 {[%emt 0:00:57]} dxc4 {[%emt 0:00:25]} 22. Qa2 {[%emt 0:00:50]} Nd7 {[%emt 0:01:26]} 23. Nf3 {[%emt 0:01:05]} Ra8 {[%emt 0:00:13]} 24. Rd1 {[%emt 0:00:36]} Nb6 {[%emt 0:05:56]} 25. axb5 {[%emt 0:00:24]} axb5 {[%emt 0:00:00]} 26. Qd2 {[%emt 0:00:32]} f6 {[%emt 0:00:00]} 27. Re1 {[%emt 0:01:05]} Qe4 {[%emt 0:00:00]} 28. Qb2 {[%emt 0:01:16]} Nd5 {[%emt 0:00:00]} 29. Nd2 {[%emt 0:00:36]} Qe7 {[%emt 0:00:00]} 30. Nf3 {[%emt 0:00:16]} Ra4 {[%emt 0:00:00]} 31. e4 {[%emt 0:00:38]} Nxb4 {[%emt 0:00:00]} 32. Qd2 {[%emt 0:00:10]} Nd3 {[%emt 0:00:00]} 33. Re3 {[%emt 0:00:18]} Rea8 {[%emt 0:00:00]} 34. Ne1 {[%emt 0:01:04]} Ra2 {[%emt 0:00:00]} 35. Nc2 {[%emt 0:00:02]} b4 {[%emt 0:00:00]} 36. Rxd3 {[%emt 0:00:25]} cxd3 {[%emt 0:00:00]} 37. Qxd3 {[%emt 0:00:02]} c5 {[%emt 0:00:09]} 38. dxc5 {[%emt 0:00:24]} Qxc5 {[%emt 0:00:10]} 39. Ne3 {[%emt 0:00:27]} Kh8 {[%emt 0:00:49]} 40. h3 {[%emt 0:00:21]} Qc3 {[%emt 0:00:15]} 41. Qd7 {[%emt 0:01:41]} Ra1 {[%emt 0:00:29]} 42. Rxa1 {[%emt 0:00:25]} Qxa1+ {[%emt 0:00:05]} 43. Kh2 {[%emt 0:00:04]} Qe5+ {[%emt 0:00:03]} 44. g3 {[%emt 0:00:10]} Qe8 {[%emt 0:00:40]} 45. Qb7 {[%emt 0:00:15]} Rb8 {[%emt 0:00:02]} 46. Qc7 {[%emt 0:00:16]} Rc8 {[%emt 0:00:13]} 47. Qb7 {[%emt 0:00:05]} Qf8 {[%emt 0:00:20]} 48. Nf5 {[%emt 0:00:14]} Re8 {[%emt 0:00:15]} 49. h4 {[%emt 0:00:49]} g6 {[%emt 0:00:19]} 50. Nd4 {[%emt 0:00:17]} Qe7 {[%emt 0:00:01]} 51. Qb6 {[%emt 0:00:24]} Qe5 {[%emt 0:00:21]} 52. Qc6 {[%emt 0:00:54]} Re7 {[%emt 0:00:12]} 53. Nf3 {[%emt 0:00:23]} Qe6 {[%emt 0:00:02]} 54. Qc5 {[%emt 0:00:12]} b3 {[%emt 0:00:04]} 55. Nd4 {[%emt 0:00:08]} Qe5 {[%emt 0:00:09]} 56. Qc4 {[%emt 0:00:10]} b2 {[%emt 0:00:04]} 57. Nc6 {[%emt 0:00:15]} Qxe4 {[%emt 0:00:10]} 58. Qxe4 {[%emt 0:00:26]} Rxe4 {[%emt 0:00:03]} 59. Kg2 {[%emt 0:00:03]} b1=Q {[%emt 0:00:55]} 60. Nd4 {[%emt 0:00:04]} Rxd4 {[%emt 0:00:00]} 61. h5 {[%emt 0:00:02]} Qe4+ {[%emt 0:00:00]} 62. Kh2 {[%emt 0:00:03]} Rd1 {[%emt 0:00:00]} 63. hxg6 {[%emt 0:00:03]} Rh1# {[%emt 0:00:00]} 0-1

[Event "Asian Amateur Rapid Women 2024"]
[Site "Al Ain"]
[Date "2024.12.15"]
[Round "5.5"]
[White "Mera Abdulaziz Aidarous"]
[Black "Ahlam Rashed"]
[Result "0-1"]
[ECO "C54"]
[WhiteElo "1584"]
[BlackElo "1987"]
[Annotator "NA RC"]
[PlyCount "76"]
[EventDate "2024.12.15"]
[EventType "swiss"]
[EventCountry "UAE"]
[SourceTitle "playchess.com"]
[Source "ChessBase"]
[SourceQuality "1"]
[TimeControl "900+10"]

1. e4 {[%emt 0:00:06]} e5 {[%emt 0:00:01]} 2. Nf3 {[%emt 0:00:04]} Nc6 {[%emt 0:00:05]} 3. Bc4 {[%emt 0:00:03]} Bc5 {[%emt 0:00:02]} 4. c3 {[%emt 0:00:03]} Nf6 {[%emt 0:00:01]} 5. d3 {[%emt 0:00:02]} d6 {[%emt 0:00:06]} 6. O-O {[%emt 0:00:07]} a5 {[%emt 0:00:02]} 7. a4 {[%emt 0:00:03]} Ba7 {[%emt 0:01:02]} 8. Nbd2 {[%emt 0:00:20]} O-O {[%emt 0:00:10]} 9. h3 {[%emt 0:00:23]} h6 {[%emt 0:01:49]} 10. Re1 {[%emt 0:00:06]} Be6 {[%emt 0:00:08]} 11. b3 {[%emt 0:01:28]} Ne7 {[%emt 0:00:58]} 12. Nf1 {[%emt 0:00:11]} Bxc4 {[%emt 0:00:11]} 13. bxc4 {[%emt 0:00:05]} Ng6 {[%emt 0:00:10]} 14. Ng3 {[%emt 0:00:03]} Qd7 {[%emt 0:02:43]} 15. d4 {[%emt 0:02:23]} Qc6 {[%emt 0:00:54]} 16. Qd3 {[%emt 0:00:41]} Rad8 {[%emt 0:00:59]} 17. d5 {[%emt 0:03:12]} Qd7 {[%emt 0:00:06]} 18. Be3 {[%emt 0:01:07]} Bxe3 {[%emt 0:00:58]} 19. Qxe3 {[%emt 0:00:08]} Kh7 {[%emt 0:00:57]} 20. c5 {[%emt 0:00:38]} c6 {[%emt 0:00:56]} 21. c4 {[%emt 0:00:18]} Rfe8 {[%emt 0:01:46]} 22. Red1 {[%emt 0:01:11]} Qc7 {[%emt 0:00:36]} 23. cxd6 {[%emt 0:01:30]} Qxd6 {[%emt 0:01:03]} 24. Nf5 {[%emt 0:01:17]} Qb8 {[%emt 0:00:34]} 25. d6 {[%emt 0:01:29]} Re6 {[%emt 0:00:32]} 26. c5 {[%emt 0:00:24]} Nd7 {[%emt 0:00:20]} 27. Rab1 {[%emt 0:00:29]} Qa7 {[%emt 0:00:18]} 28. Rdc1 {[%emt 0:00:08]} Nf4 {[%emt 0:00:18]} 29. Kh2 {[%emt 0:00:30]} Qa6 {[%emt 0:00:24]} 30. Ne1 {[%emt 0:00:48]} Rg6 {[%emt 0:00:57]} 31. g3 {[%emt 0:00:08]} Qf1 {[%emt 0:00:16]} 32. Nh4 {[%emt 0:00:18]} Qxh3+ {[%emt 0:00:04]} 33. Kg1 {[%emt 0:00:16]} Qxh4 {[%emt 0:00:10]} 34. Ng2 {[%emt 0:00:24]} Qh3 {[%emt 0:00:17]} 35. Nxf4 {[%emt 0:00:09]} exf4 {[%emt 0:00:02]} 36. Qxf4 {[%emt 0:00:03]} Rf6 {[%emt 0:00:25]} 37. Qe3 {[%emt 0:00:03]} Ne5 {[%emt 0:00:05]} 38. Qe2 {[%emt 0:00:40]} Nf3+ {[%emt 0:00:03]} 0-1

[Event "Asian Amateur Rapid Women 2024"]
[Site "Al Ain"]
[Date "2024.12.15"]
[Round "5.6"]
[White "Joshi, Sindira"]
[Black "Olandag, Meghan Gabrielle"]
[Result "1-0"]
[ECO "C10"]
[WhiteElo "1735"]
[BlackElo "1479"]
[Annotator "NA RC"]
[PlyCount "59"]
[EventDate "2024.12.15"]
[EventType "swiss"]
[EventCountry "UAE"]
[SourceTitle "playchess.com"]
[Source "ChessBase"]
[SourceQuality "1"]
[TimeControl "900+10"]

1. e4 {[%emt 0:00:02]} e6 {[%emt 0:00:01]} 2. d4 {[%emt 0:00:03]} d5 {[%emt 0:00:01]} 3. Nc3 {[%emt 0:00:03]} dxe4 {[%emt 0:00:04]} 4. Nxe4 {[%emt 0:00:02]} Bd7 {[%emt 0:00:02]} 5. Nf3 {[%emt 0:00:07]} Bc6 {[%emt 0:00:02]} 6. Bd3 {[%emt 0:00:11]} Be7 {[%emt 0:00:07]} 7. O-O {[%emt 0:00:20]} Nf6 {[%emt 0:00:03]} 8. Re1 {[%emt 0:00:28]} b6 {[%emt 0:00:25]} 9. c3 {[%emt 0:00:04]} O-O {[%emt 0:00:05]} 10. Bf4 {[%emt 0:00:30]} Bb7 {[%emt 0:00:20]} 11. Nxf6+ {[%emt 0:00:28]} Bxf6 {[%emt 0:00:14]} 12. Be4 {[%emt 0:00:18]} Bxe4 {[%emt 0:00:23]} 13. Rxe4 {[%emt 0:00:04]} Qd5 {[%emt 0:00:35]} 14. Qe2 {[%emt 0:00:23]} c5 {[%emt 0:01:12]} 15. dxc5 {[%emt 0:00:19]} Qxc5 {[%emt 0:00:11]} 16. Rd1 {[%emt 0:00:27]} Nc6 {[%emt 0:00:53]} 17. Bd6 {[%emt 0:00:48]} Qf5 {[%emt 0:01:31]} 18. Bxf8 {[%emt 0:00:16]} Kxf8 {[%emt 0:00:38]} 19. h3 {[%emt 0:00:34]} Qa5 {[%emt 0:00:42]} 20. a3 {[%emt 0:00:17]} Ne7 {[%emt 0:00:37]} 21. Ne5 {[%emt 0:00:34]} Bxe5 {[%emt 0:02:09]} 22. Rxe5 {[%emt 0:00:02]} Nd5 {[%emt 0:00:13]} 23. c4 {[%emt 0:00:15]} Nf4 {[%emt 0:00:31]} 24. Qe3 {[%emt 0:00:25]} Qa4 {[%emt 0:01:03]} 25. b3 {[%emt 0:00:18]} Qxa3 {[%emt 0:00:27]} 26. Qxf4 {[%emt 0:00:04]} Qxb3 {[%emt 0:00:09]} 27. Rde1 {[%emt 0:00:05]} Rd8 {[%emt 0:00:16]} 28. Rxe6 {[%emt 0:00:26]} f6 {[%emt 0:00:42]} 29. Re7 {[%emt 0:00:29]} Qb4 {[%emt 0:00:59]} 30. Qc7 {[%emt 0:00:22]} 1-0

[Event "Asian Amateur Rapid Women 2024"]
[Site "Al Ain"]
[Date "2024.12.15"]
[Round "5.7"]
[White "Charomova, Evguenia"]
[Black "Marksim Karki Abirami, Sriiyukthaa"]
[Result "1-0"]
[ECO "B76"]
[WhiteElo "1870"]
[BlackElo "1466"]
[Annotator "NA RC"]
[PlyCount "103"]
[EventDate "2024.12.15"]
[EventType "swiss"]
[EventCountry "UAE"]
[SourceTitle "playchess.com"]
[Source "ChessBase"]
[SourceQuality "1"]
[TimeControl "900+10"]

1. e4 {[%emt 0:00:02]} c5 {[%emt 0:00:03]} 2. Nf3 {[%emt 0:00:02]} d6 {[%emt 0:00:03]} 3. d4 {[%emt 0:00:02]} cxd4 {[%emt 0:00:04]} 4. Nxd4 {[%emt 0:00:02]} Nf6 {[%emt 0:00:03]} 5. Nc3 {[%emt 0:00:02]} g6 {[%emt 0:00:03]} 6. f3 {[%emt 0:00:18]} Bg7 {[%emt 0:00:02]} 7. Be3 {[%emt 0:00:02]} O-O {[%emt 0:00:03]} 8. Qd2 {[%emt 0:00:08]} Nc6 {[%emt 0:00:04]} 9. g4 {[%emt 0:00:39]} Bd7 {[%emt 0:00:08]} 10. h4 {[%emt 0:00:08]} Rc8 {[%emt 0:00:04]} 11. h5 {[%emt 0:00:59]} a6 {[%emt 0:00:07]} 12. hxg6 {[%emt 0:01:17]} fxg6 {[%emt 0:00:03]} 13. Bc4+ {[%emt 0:00:30]} Kh8 {[%emt 0:00:20]} 14. Ne6 {[%emt 0:00:13]} Bxe6 {[%emt 0:00:09]} 15. Bxe6 {[%emt 0:00:01]} Ne5 {[%emt 0:00:19]} 16. Qe2 {[%emt 0:02:03]} Rc7 {[%emt 0:00:43]} 17. Bb6 {[%emt 0:00:44]} Qb8 {[%emt 0:00:19]} 18. Bxc7 {[%emt 0:00:09]} Qxc7 {[%emt 0:00:01]} 19. f4 {[%emt 0:00:20]} Nexg4 {[%emt 0:00:14]} 20. Bxg4 {[%emt 0:00:05]} Nxg4 {[%emt 0:00:01]} 21. Qxg4 {[%emt 0:01:39]} Bxc3+ {[%emt 0:00:03]} 22. bxc3 {[%emt 0:00:12]} Qxc3+ {[%emt 0:00:02]} 23. Kf2 {[%emt 0:09:23]} Qxc2+ {[%emt 0:00:14]} 24. Kg3 {[%emt 0:00:00]} Qxe4 {[%emt 0:00:24]} 25. Rae1 {[%emt 0:00:00]} Qd3+ {[%emt 0:00:15]} 26. Qf3 {[%emt 0:00:00]} Qxf3+ {[%emt 0:00:02]} 27. Kxf3 {[%emt 0:00:00]} e5 {[%emt 0:00:01]} 28. Re4 {[%emt 0:00:00]} g5 {[%emt 0:00:08]} 29. Rd1 {[%emt 0:00:00]} Rf6 {[%emt 0:00:13]} 30. Rc1 {[%emt 0:00:00]} Rf8 {[%emt 0:00:41]} 31. Rc7 {[%emt 0:00:00]} b5 {[%emt 0:00:16]} 32. Ra7 {[%emt 0:00:00]} gxf4 {[%emt 0:00:07]} 33. Rxa6 {[%emt 0:00:00]} Rf6 {[%emt 0:00:22]} 34. Rxe5 {[%emt 0:00:00]} dxe5 {[%emt 0:00:25]} 35. Rxf6 {[%emt 0:00:00]} Kg7 {[%emt 0:00:04]} 36. Rb6 {[%emt 0:00:00]} h5 {[%emt 0:00:03]} 37. Rxb5 {[%emt 0:00:00]} Kf6 {[%emt 0:00:06]} 38. a4 {[%emt 0:00:00]} h4 {[%emt 0:00:02]} 39. a5 {[%emt 0:00:00]} h3 {[%emt 0:00:03]} 40. a6 {[%emt 0:00:00]} h2 {[%emt 0:00:23]} 41. Rb1 {[%emt 0:00:00]} Kf5 {[%emt 0:00:04]} 42. a7 {[%emt 0:00:00]} e4+ {[%emt 0:00:02]} 43. Kg2 {[%emt 0:00:00]} f3+ {[%emt 0:00:01]} 44. Kxh2 {[%emt 0:00:00]} e3 {[%emt 0:00:18]} 45. a8=Q {[%emt 0:00:00]} Kf4 {[%emt 0:00:02]} 46. Qf8+ {[%emt 0:00:00]} Ke4 {[%emt 0:00:09]} 47. Rb4+ {[%emt 0:00:00]} Kd3 {[%emt 0:00:03]} 48. Qxf3 {[%emt 0:00:00]} Kd2 {[%emt 0:00:07]} 49. Rb3 {[%emt 0:00:00]} e2 {[%emt 0:00:06]} 50. Rb2+ {[%emt 0:00:00]} Kc1 {[%emt 0:00:03]} 51. Qc3+ {[%emt 0:00:00]} Kd1 {[%emt 0:00:05]} 52. Qd2# {[%emt 0:00:00]} 1-0

[Event "Asian Amateur Rapid Women 2024"]
[Site "Al Ain"]
[Date "2024.12.15"]
[Round "5.8"]
[White "Saeidpour, Mona"]
[Black "Lulwa Khalifa Alhammadi"]
[Result "1/2-1/2"]
[ECO "E54"]
[WhiteElo "1905"]
[BlackElo "1621"]
[Annotator "NA RC"]
[PlyCount "88"]
[EventDate "2024.12.15"]
[EventType "swiss"]
[EventCountry "UAE"]
[SourceTitle "playchess.com"]
[Source "ChessBase"]
[SourceQuality "1"]
[TimeControl "900+10"]

1. d4 {[%emt 0:00:01]} d5 {[%emt 0:00:01]} 2. c4 {[%emt 0:00:01]} e6 {[%emt 0:00:02]} 3. Nc3 {[%emt 0:00:02]} c6 {[%emt 0:00:01]} 4. e4 {[%emt 0:00:36]} Bb4 {[%emt 0:00:52]} 5. exd5 {[%emt 0:01:48]} Bxc3+ {[%emt 0:00:42]} 6. bxc3 {[%emt 0:00:02]} cxd5 {[%emt 0:00:02]} 7. Nf3 {[%emt 0:00:41]} Nf6 {[%emt 0:00:22]} 8. Bd3 {[%emt 0:00:24]} dxc4 {[%emt 0:00:04]} 9. Bxc4 {[%emt 0:00:02]} O-O {[%emt 0:00:21]} 10. O-O {[%emt 0:00:09]} Nbd7 {[%emt 0:00:26]} 11. Bb2 {[%emt 0:02:01]} b6 {[%emt 0:00:40]} 12. Re1 {[%emt 0:01:22]} Bb7 {[%emt 0:00:06]} 13. Qe2 {[%emt 0:00:42]} Qc7 {[%emt 0:00:43]} 14. Bd3 {[%emt 0:00:09]} Qf4 {[%emt 0:01:40]} 15. Nd2 {[%emt 0:03:00]} e5 {[%emt 0:03:31]} 16. Nc4 {[%emt 0:02:06]} exd4 {[%emt 0:01:03]} 17. cxd4 {[%emt 0:00:02]} Rfe8 {[%emt 0:01:38]} 18. Ne5 {[%emt 0:00:09]} Nxe5 {[%emt 0:01:37]} 19. dxe5 {[%emt 0:00:01]} Qg5 {[%emt 0:01:02]} 20. Qf1 {[%emt 0:01:50]} Nh5 {[%emt 0:00:35]} 21. Be4 {[%emt 0:01:11]} Bxe4 {[%emt 0:01:04]} 22. Rxe4 {[%emt 0:00:01]} Rac8 {[%emt 0:00:16]} 23. Rc4 {[%emt 0:01:03]} Red8 {[%emt 0:00:38]} 24. Rac1 {[%emt 0:00:47]} Rxc4 {[%emt 0:00:08]} 25. Qxc4 {[%emt 0:00:14]} Nf4 {[%emt 0:00:17]} 26. g3 {[%emt 0:00:12]} Nh3+ {[%emt 0:00:27]} 27. Kg2 {[%emt 0:00:27]} Qf5 {[%emt 0:00:07]} 28. Rc2 {[%emt 0:00:11]} Ng5 {[%emt 0:00:11]} 29. Qe2 {[%emt 0:00:23]} h6 {[%emt 0:00:34]} 30. Bc1 {[%emt 0:00:16]} Rd4 {[%emt 0:00:37]} 31. Bxg5 {[%emt 0:00:06]} Qxg5 {[%emt 0:00:01]} 32. Rc8+ {[%emt 0:00:06]} Kh7 {[%emt 0:00:02]} 33. Qc2+ {[%emt 0:00:03]} Qg6 {[%emt 0:00:07]} 34. Qxg6+ {[%emt 0:00:03]} Kxg6 {[%emt 0:00:03]} 35. Rc7 {[%emt 0:00:17]} Ra4 {[%emt 0:00:03]} 36. Rc2 {[%emt 0:00:02]} Ra5 {[%emt 0:00:02]} 37. f4 {[%emt 0:00:01]} Kf5 {[%emt 0:00:08]} 38. h3 {[%emt 0:00:03]} a6 {[%emt 0:00:05]} 39. Rb2 {[%emt 0:00:02]} b5 {[%emt 0:00:07]} 40. Kf3 {[%emt 0:00:24]} Ra3+ {[%emt 0:00:03]} 41. Kf2 {[%emt 0:00:01]} Rd3 {[%emt 0:00:29]} 42. Rc2 {[%emt 0:00:20]} f6 {[%emt 0:00:11]} 43. exf6 {[%emt 0:00:04]} gxf6 {[%emt 0:00:04]} 44. Re2 {[%emt 0:00:14]} Ra3 {[%emt 0:00:05]} 1/2-1/2

[Event "Asian Amateur Rapid Women 2024"]
[Site "Al Ain"]
[Date "2024.12.15"]
[Round "5.9"]
[White "Hotami, Mutriba"]
[Black "Latifah, Darmaki"]
[Result "0-1"]
[ECO "C84"]
[WhiteElo "1882"]
[BlackElo "1540"]
[Annotator "NA RC"]
[PlyCount "131"]
[EventDate "2024.12.15"]
[EventType "swiss"]
[EventCountry "UAE"]
[SourceTitle "playchess.com"]
[Source "ChessBase"]
[SourceQuality "1"]
[TimeControl "900+10"]

1. e4 {[%emt 0:00:02]} e5 {[%emt 0:00:01]} 2. Nf3 {[%emt 0:00:03]} Nc6 {[%emt 0:00:01]} 3. Bb5 {[%emt 0:00:02]} a6 {[%emt 0:00:02]} 4. Ba4 {[%emt 0:00:01]} Be7 {[%emt 0:00:03]} 5. c3 {[%emt 0:00:30]} b5 {[%emt 0:00:03]} 6. Bb3 {[%emt 0:00:04]} Nf6 {[%emt 0:00:42]} 7. d3 {[%emt 0:00:08]} d6 {[%emt 0:00:06]} 8. O-O {[%emt 0:00:06]} Na5 {[%emt 0:00:02]} 9. Bc2 {[%emt 0:00:03]} c5 {[%emt 0:00:01]} 10. d4 {[%emt 0:00:25]} Qc7 {[%emt 0:00:03]} 11. h3 {[%emt 0:02:50]} cxd4 {[%emt 0:01:22]} 12. cxd4 {[%emt 0:00:07]} Bd7 {[%emt 0:00:02]} 13. Nbd2 {[%emt 0:03:24]} Rc8 {[%emt 0:00:53]} 14. Bd3 {[%emt 0:00:01]} Nc6 {[%emt 0:00:23]} 15. d5 {[%emt 0:02:39]} Nb4 {[%emt 0:00:06]} 16. Bb1 {[%emt 0:00:01]} Nc2 {[%emt 0:00:52]} 17. Bxc2 {[%emt 0:00:02]} Qxc2 {[%emt 0:00:02]} 18. Qe2 {[%emt 0:00:25]} O-O {[%emt 0:01:28]} 19. Ne1 {[%emt 0:00:42]} Qa4 {[%emt 0:02:01]} 20. Kh2 {[%emt 0:01:34]} b4 {[%emt 0:03:09]} 21. Rg1 {[%emt 0:02:58]} Bb5 {[%emt 0:00:10]} 22. Qe3 {[%emt 0:00:04]} Bd8 {[%emt 0:01:23]} 23. Qg3 {[%emt 0:00:37]} b3 {[%emt 0:01:16]} 24. Qxb3 {[%emt 0:00:35]} Qxb3 {[%emt 0:02:04]} 25. axb3 {[%emt 0:00:32]} Bb6 {[%emt 0:00:03]} 26. Kg3 {[%emt 0:00:22]} Be2 {[%emt 0:02:31]} 27. Nef3 {[%emt 0:00:54]} Nh5+ {[%emt 0:00:20]} 28. Kg4 {[%emt 0:00:24]} Bxf2 {[%emt 0:00:12]} 29. Kxh5 {[%emt 0:00:05]} Bxg1 {[%emt 0:00:02]} 30. Kg4 {[%emt 0:00:03]} Bc5 {[%emt 0:00:12]} 31. Kg3 {[%emt 0:00:05]} Rb8 {[%emt 0:00:16]} 32. Ne1 {[%emt 0:00:26]} Be3 {[%emt 0:00:17]} 33. Nef3 {[%emt 0:00:03]} Bf4+ {[%emt 0:00:04]} 34. Kf2 {[%emt 0:00:02]} Bxf3 {[%emt 0:00:08]} 35. gxf3 {[%emt 0:00:04]} Bxd2 {[%emt 0:00:03]} 36. Bxd2 {[%emt 0:00:01]} Rxb3 {[%emt 0:00:09]} 37. Bc3 {[%emt 0:00:01]} Rb6 {[%emt 0:00:23]} 38. Ke3 {[%emt 0:00:14]} f5 {[%emt 0:00:12]} 39. h4 {[%emt 0:00:18]} fxe4 {[%emt 0:00:06]} 40. fxe4 {[%emt 0:00:03]} Rf4 {[%emt 0:00:04]} 41. Rh1 {[%emt 0:00:14]} Rb8 {[%emt 0:00:08]} 42. h5 {[%emt 0:00:15]} Rbf8 {[%emt 0:00:07]} 43. Ra1 {[%emt 0:00:25]} Rf3+ {[%emt 0:00:12]} 44. Kd2 {[%emt 0:00:01]} Rf2+ {[%emt 0:00:08]} 45. Kd3 {[%emt 0:00:14]} R8f3+ {[%emt 0:00:33]} 46. Kc4 {[%emt 0:00:02]} Rf4 {[%emt 0:00:04]} 47. Rxa6 {[%emt 0:00:21]} Rxe4+ {[%emt 0:00:02]} 48. Kb5 {[%emt 0:00:10]} Kf7 {[%emt 0:00:24]} 49. Rxd6 {[%emt 0:00:07]} Rf6 {[%emt 0:00:13]} 50. Rd7+ {[%emt 0:00:06]} Ke8 {[%emt 0:00:01]} 51. Rxg7 {[%emt 0:00:03]} Rf7 {[%emt 0:00:05]} 52. Rg8+ {[%emt 0:00:16]} Kd7 {[%emt 0:00:05]} 53. Kc5 {[%emt 0:00:13]} Re2 {[%emt 0:00:25]} 54. h6 {[%emt 0:00:13]} e4 {[%emt 0:00:04]} 55. Rg7 {[%emt 0:00:20]} Rxg7 {[%emt 0:00:10]} 56. hxg7 {[%emt 0:00:11]} Rg2 {[%emt 0:00:02]} 57. Kd4 {[%emt 0:00:15]} Rxg7 {[%emt 0:00:13]} 58. Kxe4 {[%emt 0:00:01]} Rg4+ {[%emt 0:00:01]} 59. Kf5 {[%emt 0:00:07]} Rg2 {[%emt 0:00:07]} 60. b4 {[%emt 0:00:13]} h5 {[%emt 0:00:04]} 61. b5 {[%emt 0:00:08]} h4 {[%emt 0:00:02]} 62. b6 {[%emt 0:00:05]} h3 {[%emt 0:00:03]} 63. Be5 {[%emt 0:00:21]} h2 {[%emt 0:00:06]} 64. b7 {[%emt 0:00:18]} h1=Q {[%emt 0:01:14]} 65. b8=Q {[%emt 0:00:02]} Qh3+ {[%emt 0:00:00]} 66. Kf6 {[%emt 0:00:29]} 0-1